[Event "*** MasterClass Titled Tuesday Blitz"]
[Site "Chess.com"]
[Date "2017.12.05"]
[Round "5"]
[White "lucasmito"]
[Black "LawrenceTrent"]
[Result "1-0"]
[WhiteElo "2202"]
[BlackElo "2374"]
[TimeControl "180+2"]
[EndTime "15:16:01 PST"]
[Termination "lucasmito won on time"]

1. e4 {[%clk 0:03:01.9]} 1... e6 {[%clk 0:02:59.8]} 2. d4 {[%clk 0:03:02.1]}
2... d5 {[%clk 0:03:00.8]} 3. Nc3 {[%clk 0:02:59.2]} 3... Nf6 {[%clk 0:03:00.6]}
4. e5 {[%clk 0:02:56.4]} 4... Nfd7 {[%clk 0:02:37.7]} 5. f4 {[%clk 0:02:57.4]}
5... c5 {[%clk 0:02:10.9]} 6. Nf3 {[%clk 0:02:57.4]} 6... Nc6 {[%clk 0:01:55.7]}
7. Be3 {[%clk 0:02:56.7]} 7... a6 {[%clk 0:01:44.2]} 8. Qd2 {[%clk 0:02:56.2]}
8... b5 {[%clk 0:01:41.3]} 9. dxc5 {[%clk 0:02:49]} 9... Nxc5 {[%clk 0:01:22.5]}
10. a3 {[%clk 0:02:30.9]} 10... Bb7 {[%clk 0:01:17.5]} 11. Nd4 {[%clk
0:02:31.5]} 11... Rc8 {[%clk 0:01:16.5]} 12. Bd3 {[%clk 0:02:29.8]} 12... Nxd3+
{[%clk 0:01:15.9]} 13. Qxd3 {[%clk 0:02:26.3]} 13... Na5 {[%clk 0:01:17]} 14. f5
{[%clk 0:01:40.5]} 14... Qd7 {[%clk 0:01:06.9]} 15. fxe6 {[%clk 0:01:35.1]}
15... fxe6 {[%clk 0:01:07.4]} 16. Nce2 {[%clk 0:01:33.9]} 16... Nc4 {[%clk
0:00:55.1]} 17. Nf4 {[%clk 0:01:26.4]} 17... Nxe3 {[%clk 0:00:47]} 18. Qxe3
{[%clk 0:01:27.5]} 18... Bc5 {[%clk 0:00:47.7]} 19. c3 {[%clk 0:01:23.2]} 19...
O-O {[%clk 0:00:44.3]} 20. O-O {[%clk 0:01:23.3]} 20... Rce8 {[%clk 0:00:30]}
21. Kh1 {[%clk 0:01:22]} 21... Rf7 {[%clk 0:00:28.3]} 22. Qh3 {[%clk 0:01:20.3]}
22... Bc8 {[%clk 0:00:28]} 23. Rad1 {[%clk 0:00:56.7]} 23... Ref8 {[%clk
0:00:27.2]} 24. Qg4 {[%clk 0:00:43.4]} 24... Qc7 {[%clk 0:00:23]} 25. Rde1
{[%clk 0:00:40.8]} 25... Bxd4 {[%clk 0:00:23.3]} 26. cxd4 {[%clk 0:00:42.7]}
26... Qc2 {[%clk 0:00:23.7]} 27. Re2 {[%clk 0:00:39.3]} 27... Qf5 {[%clk
0:00:23.3]} 28. Qg3 {[%clk 0:00:30.8]} 28... Kh8 {[%clk 0:00:21.4]} 29. Ref2
{[%clk 0:00:31.7]} 29... Qxe5 {[%clk 0:00:20.2]} 30. dxe5 {[%clk 0:00:31.7]} 1-0

[Event "*** MasterClass Titled Tuesday Blitz"]
[Site "Chess.com"]
[Date "2017.12.05"]
[Round "5"]
[White "Markov_Mikhail"]
[Black "QuintilianoR"]
[Result "1-0"]
[WhiteElo "2614"]
[BlackElo "2515"]
[TimeControl "180+2"]
[EndTime "15:16:04 PST"]
[Termination "Markov_Mikhail won by checkmate"]

1. c4 {[%clk 0:02:47.1]} 1... c5 {[%clk 0:02:59.2]} 2. Nf3 {[%clk 0:02:45.9]}
2... Nc6 {[%clk 0:03:00.4]} 3. Nc3 {[%clk 0:02:45.9]} 3... g6 {[%clk 0:03:00.8]}
4. g3 {[%clk 0:02:47]} 4... Bg7 {[%clk 0:03:01.5]} 5. Bg2 {[%clk 0:02:48.6]}
5... d6 {[%clk 0:03:03.1]} 6. O-O {[%clk 0:02:49.7]} 6... e5 {[%clk 0:03:04.7]}
7. e3 {[%clk 0:02:50.5]} 7... Nge7 {[%clk 0:03:04.8]} 8. d4 {[%clk 0:02:51.7]}
8... exd4 {[%clk 0:03:05]} 9. exd4 {[%clk 0:02:53]} 9... cxd4 {[%clk 0:03:05.6]}
10. Nb5 {[%clk 0:02:53.8]} 10... O-O {[%clk 0:03:06.1]} 11. Nbxd4 {[%clk
0:02:53.4]} 11... d5 {[%clk 0:03:07.4]} 12. Nxc6 {[%clk 0:02:42.7]} 12... bxc6
{[%clk 0:03:00.7]} 13. Qa4 {[%clk 0:02:44.1]} 13... Qb6 {[%clk 0:02:48.3]} 14.
Re1 {[%clk 0:02:27]} 14... Nf5 {[%clk 0:02:46.2]} 15. Ne5 {[%clk 0:02:16.9]}
15... Re8 {[%clk 0:02:13.9]} 16. Bf4 {[%clk 0:02:14.5]} 16... g5 {[%clk
0:02:06.9]} 17. Bxd5 {[%clk 0:01:37.6]} 17... Rxe5 {[%clk 0:01:43]} 18. Bxe5
{[%clk 0:01:33.7]} 18... cxd5 {[%clk 0:01:43.9]} 19. cxd5 {[%clk 0:01:17.2]}
19... Bb7 {[%clk 0:01:34.4]} 20. Qg4 {[%clk 0:01:10]} 20... Nh6 {[%clk
0:01:02.2]} 21. Qf3 {[%clk 0:00:44.1]} 21... f6 {[%clk 0:00:58.6]} 22. Bc3
{[%clk 0:00:42.9]} 22... Rd8 {[%clk 0:00:59.2]} 23. Rad1 {[%clk 0:00:44]} 23...
Qd6 {[%clk 0:00:54.3]} 24. Re6 {[%clk 0:00:36.8]} 24... Qd7 {[%clk 0:00:39.9]}
25. Rxf6 {[%clk 0:00:20.9]} 25... Bxd5 {[%clk 0:00:37.2]} 26. Qh5 {[%clk
0:00:21.6]} 26... Bxf6 {[%clk 0:00:20.3]} 27. Bxf6 {[%clk 0:00:22.2]} 27... Re8
{[%clk 0:00:12.8]} 28. Qxh6 {[%clk 0:00:21.3]} 28... Qg4 {[%clk 0:00:10.8]} 29.
Qg7# {[%clk 0:00:17.6]} 1-0

[Event "*** MasterClass Titled Tuesday Blitz"]
[Site "Chess.com"]
[Date "2017.12.05"]
[Round "5"]
[White "TijanaBlagojevic"]
[Black "hectorfiori"]
[Result "1-0"]
[WhiteElo "2325"]
[BlackElo "2201"]
[TimeControl "180+2"]
[EndTime "15:16:09 PST"]
[Termination "TijanaBlagojevic won by checkmate"]

1. e4 {[%clk 0:03:01.9]} 1... c5 {[%clk 0:03:00.2]} 2. Nf3 {[%clk 0:03:02.5]}
2... e6 {[%clk 0:03:01.2]} 3. c4 {[%clk 0:03:03.2]} 3... a6 {[%clk 0:03:00.6]}
4. d4 {[%clk 0:03:04.2]} 4... cxd4 {[%clk 0:03:01.6]} 5. Nxd4 {[%clk 0:03:06.1]}
5... b6 {[%clk 0:03:00.4]} 6. Nc3 {[%clk 0:03:06.7]} 6... Bb7 {[%clk 0:03:01.7]}
7. Be2 {[%clk 0:03:07.3]} 7... d6 {[%clk 0:03:01.8]} 8. O-O {[%clk 0:03:08.3]}
8... Nd7 {[%clk 0:03:02.3]} 9. a4 {[%clk 0:03:03.3]} 9... Rc8 {[%clk 0:03:02.4]}
10. a5 {[%clk 0:03:03.2]} 10... Be7 {[%clk 0:02:55.9]} 11. Be3 {[%clk
0:02:56.5]} 11... bxa5 {[%clk 0:02:52.3]} 12. Nb3 {[%clk 0:02:56.8]} 12... Ngf6
{[%clk 0:02:49.1]} 13. f3 {[%clk 0:02:53]} 13... O-O {[%clk 0:02:47.3]} 14. Nxa5
{[%clk 0:02:53.8]} 14... Ba8 {[%clk 0:02:45.1]} 15. Kh1 {[%clk 0:02:43.4]} 15...
Qc7 {[%clk 0:02:16]} 16. Qd2 {[%clk 0:02:41.4]} 16... Rfe8 {[%clk 0:02:07.8]}
17. Bg1 {[%clk 0:02:33.1]} 17... Ne5 {[%clk 0:01:39.7]} 18. Rfd1 {[%clk
0:02:31.7]} 18... Red8 {[%clk 0:01:35]} 19. Qf4 {[%clk 0:02:20.4]} 19... Ng6
{[%clk 0:01:33.9]} 20. Qg3 {[%clk 0:02:13.1]} 20... Nh5 {[%clk 0:01:33.2]} 21.
Qf2 {[%clk 0:02:14.2]} 21... e5 {[%clk 0:01:24.7]} 22. b4 {[%clk 0:02:09.8]}
22... Nhf4 {[%clk 0:01:21.3]} 23. Bf1 {[%clk 0:02:10]} 23... Ne6 {[%clk
0:01:19.9]} 24. Nd5 {[%clk 0:02:04.6]} 24... Bxd5 {[%clk 0:01:19.4]} 25. exd5
{[%clk 0:02:06.5]} 25... Nd4 {[%clk 0:01:11.1]} 26. Qd2 {[%clk 0:01:53.7]} 26...
Bf6 {[%clk 0:01:04.7]} 27. Bxd4 {[%clk 0:01:53.9]} 27... exd4 {[%clk 0:01:06.5]}
28. Nc6 {[%clk 0:01:55.2]} 28... Re8 {[%clk 0:01:04.8]} 29. Rxa6 {[%clk
0:01:53.2]} 29... Ne5 {[%clk 0:01:05.9]} 30. Nxe5 {[%clk 0:01:37.4]} 30... Bxe5
{[%clk 0:01:07.7]} 31. Bd3 {[%clk 0:01:32.2]} 31... Qe7 {[%clk 0:01:04.3]} 32.
Re1 {[%clk 0:01:25.1]} 32... Qh4 {[%clk 0:01:02.3]} 33. h3 {[%clk 0:01:04.6]}
33... Qg3 {[%clk 0:00:58.8]} 34. Kg1 {[%clk 0:00:55.3]} 34... Qh2+ {[%clk
0:00:57.4]} 35. Kf1 {[%clk 0:00:56.4]} 35... Bg3 {[%clk 0:00:54.2]} 36. Re4
{[%clk 0:00:52.8]} 36... f5 {[%clk 0:00:51]} 37. Re6 {[%clk 0:00:52.2]} 37...
Qh1+ {[%clk 0:00:48.6]} 38. Ke2 {[%clk 0:00:53.2]} 38... Qxg2+ {[%clk
0:00:49.8]} 39. Kd1 {[%clk 0:00:54.5]} 39... Qxf3+ {[%clk 0:00:49.8]} 40. Kc2
{[%clk 0:00:51.3]} 40... Rxe6 {[%clk 0:00:45.1]} 41. dxe6 {[%clk 0:00:53.2]}
41... Qe3 {[%clk 0:00:45.8]} 42. Ra7 {[%clk 0:00:42.3]} 42... Qxe6 {[%clk
0:00:44.4]} 43. Qg2 {[%clk 0:00:42.8]} 43... f4 {[%clk 0:00:44.3]} 44. Qb7
{[%clk 0:00:43.6]} 44... f3 {[%clk 0:00:41.5]} 45. Qxg7# {[%clk 0:00:43.3]} 1-0

[Event "*** MasterClass Titled Tuesday Blitz"]
[Site "Chess.com"]
[Date "2017.12.05"]
[Round "5"]
[White "Vojtastr"]
[Black "Quiet_Desperation"]
[Result "1/2-1/2"]
[WhiteElo "2394"]
[BlackElo "2346"]
[TimeControl "180+2"]
[EndTime "15:16:59 PST"]
[Termination "Game drawn - insufficient material"]

1. d4 {[%clk 0:03:00]} 1... Nf6 {[%clk 0:03:00.8]} 2. Nf3 {[%clk 0:03:01.1]}
2... e6 {[%clk 0:02:35]} 3. Bg5 {[%clk 0:02:59.5]} 3... h6 {[%clk 0:02:27.4]} 4.
Bxf6 {[%clk 0:02:57.1]} 4... Qxf6 {[%clk 0:02:28.2]} 5. e4 {[%clk 0:02:58.7]}
5... d6 {[%clk 0:02:29.5]} 6. Nc3 {[%clk 0:02:59.2]} 6... g6 {[%clk 0:02:30.2]}
7. Qd2 {[%clk 0:02:59.8]} 7... Bg7 {[%clk 0:02:30.2]} 8. O-O-O {[%clk
0:03:00.8]} 8... O-O {[%clk 0:02:30.4]} 9. h4 {[%clk 0:02:53]} 9... a6 {[%clk
0:02:26.4]} 10. Ne1 {[%clk 0:02:44.4]} 10... Nc6 {[%clk 0:02:19.3]} 11. d5
{[%clk 0:02:42.5]} 11... Na7 {[%clk 0:02:09.4]} 12. f4 {[%clk 0:02:41.4]} 12...
e5 {[%clk 0:02:08.9]} 13. g3 {[%clk 0:02:39.6]} 13... exf4 {[%clk 0:02:08]} 14.
gxf4 {[%clk 0:02:40.3]} 14... Nb5 {[%clk 0:02:08.6]} 15. Bxb5 {[%clk 0:02:33.4]}
15... axb5 {[%clk 0:02:09.6]} 16. e5 {[%clk 0:02:32.1]} 16... dxe5 {[%clk
0:02:09.7]} 17. fxe5 {[%clk 0:02:33.1]} 17... Qxe5 {[%clk 0:02:10.3]} 18. Nd3
{[%clk 0:02:32]} 18... Qd4 {[%clk 0:02:05.5]} 19. Kb1 {[%clk 0:02:14.3]} 19...
Bf5 {[%clk 0:01:57.3]} 20. a3 {[%clk 0:02:04.7]} 20... Qc4 {[%clk 0:01:40.7]}
21. h5 {[%clk 0:01:52.6]} 21... Bxc3 {[%clk 0:01:27.9]} 22. Qxc3 {[%clk
0:01:52]} 22... Qxc3 {[%clk 0:01:28.9]} 23. bxc3 {[%clk 0:01:53.6]} 23... Rxa3
{[%clk 0:01:29.9]} 24. Kb2 {[%clk 0:01:54.2]} 24... Rfa8 {[%clk 0:01:28.5]} 25.
Nb4 {[%clk 0:01:52.6]} 25... c5 {[%clk 0:01:22.9]} 26. dxc6 {[%clk 0:01:53]}
26... bxc6 {[%clk 0:01:24]} 27. hxg6 {[%clk 0:01:53.5]} 27... fxg6 {[%clk
0:01:18.3]} 28. Nxc6 {[%clk 0:00:34.5]} 28... Ra2+ {[%clk 0:01:17.4]} 29. Kb3
{[%clk 0:00:35.8]} 29... Bxc2+ {[%clk 0:01:15.3]} 30. Kb4 {[%clk 0:00:37]} 30...
Bxd1 {[%clk 0:01:16.5]} 31. Rxd1 {[%clk 0:00:38.4]} 31... Rb2+ {[%clk
0:01:12.3]} 32. Kc5 {[%clk 0:00:39.3]} 32... h5 {[%clk 0:01:00.7]} 33. Rd7
{[%clk 0:00:35.2]} 33... Re8 {[%clk 0:00:57.4]} 34. Ne7+ {[%clk 0:00:34]} 34...
Rxe7 {[%clk 0:00:58.7]} 35. Rxe7 {[%clk 0:00:34.3]} 35... h4 {[%clk 0:00:57.7]}
36. Re4 {[%clk 0:00:16.9]} 36... g5 {[%clk 0:00:53.8]} 37. Rg4 {[%clk
0:00:17.2]} 37... Kf7 {[%clk 0:00:52.8]} 38. Rxg5 {[%clk 0:00:18.3]} 38... h3
{[%clk 0:00:52.7]} 39. Rh5 {[%clk 0:00:19.4]} 39... h2 {[%clk 0:00:53.8]} 40.
Kb6 {[%clk 0:00:18.6]} 40... Kg6 {[%clk 0:00:54.4]} 41. Rh8 {[%clk 0:00:19.6]}
41... Kg5 {[%clk 0:00:53.5]} 42. Kc5 {[%clk 0:00:20.4]} 42... Kg4 {[%clk
0:00:53.6]} 43. Rg8+ {[%clk 0:00:20.8]} 43... Kf3 {[%clk 0:00:53.9]} 44. Rh8
{[%clk 0:00:22.1]} 44... Kg2 {[%clk 0:00:53.1]} 45. Rg8+ {[%clk 0:00:23.2]}
45... Kh1 {[%clk 0:00:52.7]} 46. Rh8 {[%clk 0:00:23.7]} 46... Rg2 {[%clk
0:00:48]} 47. Kxb5 {[%clk 0:00:24]} 47... Kg1 {[%clk 0:00:48.9]} 48. c4 {[%clk
0:00:25.2]} 48... h1=Q {[%clk 0:00:49.7]} 49. Rxh1+ {[%clk 0:00:25.6]} 49...
Kxh1 {[%clk 0:00:51.2]} 50. c5 {[%clk 0:00:27.2]} 50... Kh2 {[%clk 0:00:50.8]}
51. c6 {[%clk 0:00:28.4]} 51... Kg3 {[%clk 0:00:52]} 52. c7 {[%clk 0:00:29.6]}
52... Rb2+ {[%clk 0:00:52.3]} 53. Kc6 {[%clk 0:00:30.6]} 53... Rc2+ {[%clk
0:00:53.5]} 54. Kb7 {[%clk 0:00:31.9]} 54... Rb2+ {[%clk 0:00:54.6]} 55. Ka7
{[%clk 0:00:32.5]} 55... Ra2+ {[%clk 0:00:55.1]} 56. Kb7 {[%clk 0:00:33.9]}
56... Rb2+ {[%clk 0:00:56.5]} 57. Ka7 {[%clk 0:00:35.2]} 57... Rc2 {[%clk
0:00:57.8]} 58. Kb7 {[%clk 0:00:36.3]} 58... Kf4 {[%clk 0:00:58.8]} 59. c8=Q
{[%clk 0:00:36.7]} 59... Rxc8 {[%clk 0:01:00.5]} 60. Kxc8 {[%clk 0:00:38]}
1/2-1/2

[Event "*** MasterClass Titled Tuesday Blitz"]
[Site "Chess.com"]
[Date "2017.12.05"]
[Round "5"]
[White "Jahonas"]
[Black "LastHeroJr"]
[Result "1-0"]
[WhiteElo "2261"]
[BlackElo "2403"]
[TimeControl "180+2"]
[EndTime "15:17:03 PST"]
[Termination "Jahonas won by resignation"]

1. d4 {[%clk 0:03:00]} 1... Nf6 {[%clk 0:03:00.9]} 2. c4 {[%clk 0:03:00]} 2...
g6 {[%clk 0:03:02.2]} 3. g3 {[%clk 0:03:00.5]} 3... Bg7 {[%clk 0:03:03]} 4. Nf3
{[%clk 0:03:01.8]} 4... O-O {[%clk 0:03:04.1]} 5. Bg2 {[%clk 0:03:03.2]} 5... d6
{[%clk 0:03:05.7]} 6. O-O {[%clk 0:03:04.4]} 6... Nbd7 {[%clk 0:03:07.2]} 7. b3
{[%clk 0:03:05.6]} 7... e5 {[%clk 0:03:04.1]} 8. d5 {[%clk 0:03:05.8]} 8... Ne8
{[%clk 0:02:55.7]} 9. Bb2 {[%clk 0:03:06.2]} 9... f5 {[%clk 0:02:52.9]} 10. Nc3
{[%clk 0:03:04.4]} 10... e4 {[%clk 0:02:43.3]} 11. Nd4 {[%clk 0:03:04.2]} 11...
Ne5 {[%clk 0:02:44.6]} 12. f3 {[%clk 0:02:57.1]} 12... exf3 {[%clk 0:02:41.1]}
13. exf3 {[%clk 0:02:55.4]} 13... Qf6 {[%clk 0:02:41.7]} 14. Nce2 {[%clk
0:02:48.8]} 14... c5 {[%clk 0:02:33.1]} 15. dxc6 {[%clk 0:02:48.5]} 15... bxc6
{[%clk 0:02:33.9]} 16. f4 {[%clk 0:02:45.2]} 16... Ng4 {[%clk 0:02:32.3]} 17.
Bxc6 {[%clk 0:02:42.8]} 17... Rb8 {[%clk 0:02:17.8]} 18. Bd5+ {[%clk 0:02:43.4]}
18... Kh8 {[%clk 0:02:18.7]} 19. Qd3 {[%clk 0:02:42.7]} 19... Nc7 {[%clk
0:02:14.4]} 20. Rab1 {[%clk 0:02:34]} 20... Nxd5 {[%clk 0:02:07]} 21. cxd5
{[%clk 0:02:29.2]} 21... Qf7 {[%clk 0:02:08.3]} 22. Nc6 {[%clk 0:02:24.2]} 22...
Rb6 {[%clk 0:02:02.2]} 23. Bxg7+ {[%clk 0:02:20.1]} 23... Qxg7 {[%clk 0:02:03]}
24. Rfe1 {[%clk 0:02:16.4]} 24... Ba6 {[%clk 0:01:48.5]} 25. Qd4 {[%clk
0:02:10.8]} 25... Nf6 {[%clk 0:01:46.4]} 26. Nc3 {[%clk 0:02:07.4]} 26... Nxd5
{[%clk 0:01:22.2]} 27. Qxg7+ {[%clk 0:01:18.9]} 27... Kxg7 {[%clk 0:01:22.9]}
28. Nxd5 {[%clk 0:01:16.2]} 28... Rxc6 {[%clk 0:01:24.2]} 29. Rbc1 {[%clk
0:01:14.6]} 29... Rxc1 {[%clk 0:01:10.5]} 30. Rxc1 {[%clk 0:01:14.9]} 30... Rf7
{[%clk 0:01:10.9]} 31. Kf2 {[%clk 0:01:12.2]} 31... Bb7 {[%clk 0:01:11.7]} 32.
Nc7 {[%clk 0:01:08.3]} 32... Kf6 {[%clk 0:01:04.5]} 33. Nb5 {[%clk 0:01:07.7]}
33... Ke6 {[%clk 0:00:52.9]} 34. Nxa7 {[%clk 0:01:07.4]} 34... Be4 {[%clk
0:00:52]} 35. Nb5 {[%clk 0:01:05.9]} 35... h6 {[%clk 0:00:44.5]} 36. h4 {[%clk
0:01:04.3]} 36... g5 {[%clk 0:00:45.6]} 37. hxg5 {[%clk 0:01:04.9]} 37... hxg5
{[%clk 0:00:47.5]} 38. fxg5 {[%clk 0:01:05.7]} 38... Rg7 {[%clk 0:00:48.9]} 39.
Nd4+ {[%clk 0:00:58.2]} 39... Ke5 {[%clk 0:00:46.1]} 40. Nf3+ {[%clk 0:00:58.3]}
40... Ke6 {[%clk 0:00:44.9]} 41. Rc4 {[%clk 0:00:46]} 41... Ra7 {[%clk
0:00:44.3]} 42. Ra4 {[%clk 0:00:45.5]} 42... Rc7 {[%clk 0:00:43.8]} 43. Nd4+
{[%clk 0:00:40.1]} 43... Kd5 {[%clk 0:00:41.5]} 44. Ne2 {[%clk 0:00:38.4]} 44...
Rg7 {[%clk 0:00:31.2]} 45. Ke3 {[%clk 0:00:34.2]} 45... Rxg5 {[%clk 0:00:22]}
46. Rd4+ {[%clk 0:00:34.4]} 46... Ke5 {[%clk 0:00:21.4]} 47. a4 {[%clk
0:00:34.1]} 47... Rg7 {[%clk 0:00:22.5]} 48. b4 {[%clk 0:00:33.8]} 48... Ra7
{[%clk 0:00:23.5]} 49. b5 {[%clk 0:00:34.7]} 49... d5 {[%clk 0:00:21.6]} 50. Rb4
{[%clk 0:00:35]} 50... Kd6 {[%clk 0:00:22.7]} 51. b6 {[%clk 0:00:35.9]} 51...
Rc7 {[%clk 0:00:23.8]} 52. bxc7 {[%clk 0:00:36.4]} 52... Kxc7 {[%clk 0:00:25]}
53. Kd4 {[%clk 0:00:37.5]} 1-0

[Event "*** MasterClass Titled Tuesday Blitz"]
[Site "Chess.com"]
[Date "2017.12.05"]
[Round "5"]
[White "Lunaticx"]
[Black "Blitzstream"]
[Result "0-1"]
[WhiteElo "2700"]
[BlackElo "2522"]
[TimeControl "180+2"]
[EndTime "15:17:09 PST"]
[Termination "Blitzstream won on time"]

1. e4 {[%clk 0:03:01.9]} 1... d5 {[%clk 0:03:00.4]} 2. d3 {[%clk 0:03:00.6]}
2... dxe4 {[%clk 0:03:00.5]} 3. dxe4 {[%clk 0:03:02.5]} 3... Qxd1+ {[%clk
0:03:01.8]} 4. Kxd1 {[%clk 0:03:04.4]} 4... Nc6 {[%clk 0:03:00.7]} 5. c3 {[%clk
0:03:05.3]} 5... f5 {[%clk 0:03:00.5]} 6. exf5 {[%clk 0:03:02.9]} 6... Bxf5
{[%clk 0:03:01.1]} 7. Be3 {[%clk 0:03:03.8]} 7... O-O-O+ {[%clk 0:03:01.9]} 8.
Nd2 {[%clk 0:03:04.7]} 8... Nf6 {[%clk 0:03:02.2]} 9. Bb5 {[%clk 0:03:03.8]}
9... Ne5 {[%clk 0:02:53.8]} 10. Nf3 {[%clk 0:03:02.5]} 10... Nxf3 {[%clk
0:02:44.4]} 11. gxf3 {[%clk 0:03:03.2]} 11... e6 {[%clk 0:02:27.6]} 12. Ke2
{[%clk 0:02:48.6]} 12... a6 {[%clk 0:02:28]} 13. Bc4 {[%clk 0:02:49.3]} 13... b5
{[%clk 0:02:28.6]} 14. Bb3 {[%clk 0:02:50.3]} 14... Bd3+ {[%clk 0:02:29.6]} 15.
Ke1 {[%clk 0:02:51.4]} 15... Nd5 {[%clk 0:02:27.2]} 16. Ne4 {[%clk 0:02:35.9]}
16... Nxe3 {[%clk 0:02:11.4]} 17. Bxe6+ {[%clk 0:02:32.3]} 17... Kb7 {[%clk
0:02:12.2]} 18. fxe3 {[%clk 0:02:34]} 18... Bxe4 {[%clk 0:02:12.2]} 19. fxe4
{[%clk 0:02:27.1]} 19... Bc5 {[%clk 0:02:12.5]} 20. Rd1 {[%clk 0:02:18.7]} 20...
Rde8 {[%clk 0:02:06.3]} 21. Bf7 {[%clk 0:01:56.3]} 21... Re7 {[%clk 0:02:03.2]}
22. Rf1 {[%clk 0:01:57.1]} 22... Bxe3 {[%clk 0:01:48.1]} 23. Bb3 {[%clk
0:01:40]} 23... Bc5 {[%clk 0:01:45.6]} 24. Bc2 {[%clk 0:01:40.6]} 24... Bd6
{[%clk 0:01:39.7]} 25. h3 {[%clk 0:01:39.1]} 25... g5 {[%clk 0:01:31.8]} 26. Rd5
{[%clk 0:01:36.7]} 26... Rg8 {[%clk 0:01:28.8]} 27. Rg1 {[%clk 0:01:33.3]} 27...
h6 {[%clk 0:01:23.2]} 28. Ke2 {[%clk 0:01:33.4]} 28... Bf4 {[%clk 0:01:14.4]}
29. a4 {[%clk 0:01:31.7]} 29... c6 {[%clk 0:01:13.9]} 30. Rdd1 {[%clk
0:01:27.7]} 30... h5 {[%clk 0:01:13.2]} 31. axb5 {[%clk 0:01:25]} 31... axb5
{[%clk 0:01:13.8]} 32. Kf3 {[%clk 0:01:18.9]} 32... Kb6 {[%clk 0:01:11.1]} 33.
Rg2 {[%clk 0:01:13.6]} 33... Rf8 {[%clk 0:01:11.2]} 34. Ke2 {[%clk 0:01:14.3]}
34... Ra8 {[%clk 0:01:07.9]} 35. h4 {[%clk 0:01:09.2]} 35... gxh4 {[%clk
0:01:01.8]} 36. Rf2 {[%clk 0:01:04.6]} 36... Be5 {[%clk 0:00:52.8]} 37. Rf5
{[%clk 0:01:04.1]} 37... h3 {[%clk 0:00:53.8]} 38. Rxh5 {[%clk 0:01:03]} 38...
h2 {[%clk 0:00:55.1]} 39. Rf1 {[%clk 0:00:59.2]} 39... Ra2 {[%clk 0:00:55]} 40.
Rb1 {[%clk 0:00:54.1]} 40... Bxc3 {[%clk 0:00:48.5]} 41. Rxh2 {[%clk 0:00:52.2]}
41... Bxb2 {[%clk 0:00:37.5]} 42. Kf3 {[%clk 0:00:44]} 42... Be5 {[%clk
0:00:30.7]} 43. Rd2 {[%clk 0:00:43.8]} 43... Rf7+ {[%clk 0:00:30.3]} 44. Kg4
{[%clk 0:00:43.2]} 44... Ra8 {[%clk 0:00:29.7]} 0-1

[Event "*** MasterClass Titled Tuesday Blitz"]
[Site "Chess.com"]
[Date "2017.12.05"]
[Round "5"]
[White "cheese111"]
[Black "1e41-0"]
[Result "1-0"]
[WhiteElo "2434"]
[BlackElo "2349"]
[TimeControl "180+2"]
[EndTime "15:17:10 PST"]
[Termination "cheese111 won by checkmate"]

1. e4 {[%clk 0:03:01.9]} 1... c5 {[%clk 0:03:00.8]} 2. Nf3 {[%clk 0:03:01]} 2...
e6 {[%clk 0:03:02]} 3. d3 {[%clk 0:02:59.2]} 3... d5 {[%clk 0:03:01.7]} 4. Qe2
{[%clk 0:02:58.9]} 4... Nf6 {[%clk 0:03:00.4]} 5. g3 {[%clk 0:02:58]} 5... Nc6
{[%clk 0:03:01.3]} 6. Bg2 {[%clk 0:02:58.5]} 6... g6 {[%clk 0:03:02.8]} 7. exd5
{[%clk 0:02:39.3]} 7... Nxd5 {[%clk 0:03:01.8]} 8. Bg5 {[%clk 0:02:40.3]} 8...
Qc7 {[%clk 0:02:38.6]} 9. O-O {[%clk 0:02:15.2]} 9... Bg7 {[%clk 0:02:38.4]} 10.
c3 {[%clk 0:02:16.5]} 10... O-O {[%clk 0:02:37]} 11. Na3 {[%clk 0:02:14.2]}
11... h6 {[%clk 0:02:15.4]} 12. Bd2 {[%clk 0:02:12.9]} 12... Rd8 {[%clk
0:02:10.8]} 13. Rfe1 {[%clk 0:02:08.8]} 13... e5 {[%clk 0:02:01.1]} 14. Nc4
{[%clk 0:02:06.8]} 14... f6 {[%clk 0:01:43.1]} 15. Nh4 {[%clk 0:02:02.8]} 15...
Kf7 {[%clk 0:01:40.8]} 16. Nxg6 {[%clk 0:01:32.9]} 16... Kxg6 {[%clk 0:01:35.2]}
17. Bxd5 {[%clk 0:01:33.1]} 17... Bf5 {[%clk 0:01:29.3]} 18. Be4 {[%clk
0:01:32.3]} 18... Bxe4 {[%clk 0:01:26.2]} 19. dxe4 {[%clk 0:01:33.3]} 19... b5
{[%clk 0:01:26.1]} 20. Ne3 {[%clk 0:01:33.6]} 20... Ne7 {[%clk 0:01:24.1]} 21.
Rad1 {[%clk 0:01:31.5]} 21... c4 {[%clk 0:01:23.9]} 22. Qg4+ {[%clk 0:01:22.6]}
22... Kf7 {[%clk 0:01:20.9]} 23. Qh5+ {[%clk 0:01:23.8]} 23... Kg8 {[%clk
0:01:20.5]} 24. Ng4 {[%clk 0:01:24.7]} 24... Rd3 {[%clk 0:01:08.5]} 25. Bxh6
{[%clk 0:01:16]} 25... Qd6 {[%clk 0:01:07.4]} 26. Rxd3 {[%clk 0:01:07.9]} 26...
cxd3 {[%clk 0:01:06.4]} 27. Bxg7 {[%clk 0:00:44.9]} 27... Kxg7 {[%clk
0:01:08.3]} 28. Qh6+ {[%clk 0:00:46.3]} 28... Kf7 {[%clk 0:01:08.8]} 29. Qh7+
{[%clk 0:00:47.5]} 29... Ke6 {[%clk 0:00:56.7]} 30. Qg7 {[%clk 0:00:46.8]} 30...
Ng8 {[%clk 0:00:55.1]} 31. Rd1 {[%clk 0:00:44.4]} 31... Rd8 {[%clk 0:00:54.1]}
32. Ne3 {[%clk 0:00:44.2]} 32... Ne7 {[%clk 0:00:50.6]} 33. Nd5 {[%clk
0:00:43.8]} 33... Nxd5 {[%clk 0:00:49.9]} 34. Rxd3 {[%clk 0:00:44.5]} 34... Qc5
{[%clk 0:00:11]} 35. Rxd5 {[%clk 0:00:41.2]} 35... Rxd5 {[%clk 0:00:12.4]} 36.
Qg8+ {[%clk 0:00:42.1]} 36... Ke7 {[%clk 0:00:13.6]} 37. Qxd5 {[%clk 0:00:44]}
37... Qb6 {[%clk 0:00:14.1]} 38. h4 {[%clk 0:00:44.1]} 38... b4 {[%clk
0:00:15.6]} 39. h5 {[%clk 0:00:43.8]} 39... bxc3 {[%clk 0:00:16.7]} 40. bxc3
{[%clk 0:00:44.8]} 40... Qb1+ {[%clk 0:00:17.7]} 41. Kg2 {[%clk 0:00:46.2]}
41... Qc1 {[%clk 0:00:15.1]} 42. Qg8 {[%clk 0:00:42.4]} 42... f5 {[%clk
0:00:12.5]} 43. exf5 {[%clk 0:00:37.7]} 43... Qxc3 {[%clk 0:00:08.1]} 44. Qe6+
{[%clk 0:00:38.3]} 44... Kd8 {[%clk 0:00:09.6]} 45. f6 {[%clk 0:00:39]} 45...
Qd3 {[%clk 0:00:07.9]} 46. f7 {[%clk 0:00:35.8]} 46... Qe4+ {[%clk 0:00:08.2]}
47. Kh2 {[%clk 0:00:36.8]} 47... Qf3 {[%clk 0:00:07.7]} 48. Qd6+ {[%clk
0:00:33.9]} 48... Kc8 {[%clk 0:00:08.7]} 49. f8=Q+ {[%clk 0:00:35.8]} 49... Kb7
{[%clk 0:00:10.2]} 50. Qfb8# {[%clk 0:00:34.7]} 1-0